fUST/lending_fUST_20250725
["ID","MTS","AMOUNT","RATE_DAILY","PERIOD"]
[374782782,1753441839140,-460.0,0.00019452,2]
[374782783,1753441839149,-460.0,0.00019452,2]
[374782784,1753441839159,-460.0,0.00019452,2]
[374782785,1753441839168,-460.0,0.00019452,2]
[374782786,1753441839179,-460.0,0.00019452,2]
[374782787,1753441839188,-460.0,0.00019452,2]
[374782788,1753441839198,-460.0,0.00019452,2]
[374782789,1753441839208,-460.0,0.00019452,2]
[374782790,1753441839218,-460.0,0.00019452,2]
[374782791,1753441839228,-460.0,0.00019452,2]
[374782792,1753441839240,-460.0,0.00019452,2]
[374782793,1753441839251,-460.0,0.00019452,2]
[374782794,1753441839262,-460.0,0.00019452,2]
[374782795,1753441839271,-486.18,0.00019452,2]
[374782796,1753441839282,-279.26852187,0.00019452,2]
[374782797,1753441839291,-460.0,0.00019452,2]
[374782798,1753441839304,-460.0,0.00019452,2]
[374782799,1753441839314,-538.43,0.00019452,2]
[374782800,1753441839323,-524.1,0.00019452,2]
[374782801,1753441839333,-460.0,0.00019452,2]
[374782802,1753441839343,-688.47,0.00019452,2]
[374782803,1753441839352,-460.0,0.00019452,2]
[374782804,1753441839362,-460.0,0.00019452,2]
[374782805,1753441839372,-460.0,0.00019452,2]
[374782806,1753441839382,-460.0,0.00019452,2]
[374782807,1753441839392,-460.0,0.00019452,2]
[374782808,1753441839402,-460.0,0.00019452,2]
[374782809,1753441839411,-460.0,0.00019452,2]
[374782810,1753441839421,-460.0,0.00019452,2]
[374782811,1753441839431,-460.0,0.00019452,2]
[374782812,1753441839442,-460.0,0.00019452,2]
[374782813,1753441839452,-460.0,0.00019452,2]
[374782814,1753441839465,-475.82941195,0.00019452,2]
[374782815,1753441839474,-3625.13,0.00019452,2]
[374782816,1753441839485,-460.0,0.00019452,2]
[374782817,1753441839496,-460.0,0.00019452,2]
[374782818,1753441839506,-1002.04,0.00019452,2]
[374782819,1753441839515,-460.0,0.00019452,2]
[374782820,1753441839525,-460.0,0.00019452,2]
[374782821,1753441839534,-460.0,0.00019452,2]
[374782822,1753441839544,-460.0,0.00019452,2]
[374782823,1753441839554,-460.0,0.00019452,2]
[374782824,1753441839564,-460.0,0.00019452,2]
[374782825,1753441839574,-460.0,0.00019452,2]
[374782826,1753441839584,-460.0,0.00019452,2]
[374782827,1753441839594,-460.0,0.00019452,2]
[374782828,1753441839605,-460.0,0.00019452,2]
[374782829,1753441839615,-644.01,0.00019452,2]
[374782830,1753441839627,-1039.79436513,0.00019624,2]
[374782831,1753441839636,-420.0,0.00019651,2]
[374782832,1753441839646,-460.0,0.00019725,2]
[374782833,1753441839656,-460.0,0.00019726,2]
[374782834,1753441839665,-460.0,0.00019726,2]
[374782835,1753441839675,-460.0,0.00019726,2]
[374782836,1753441839686,-685.69,0.00019726,2]
[374782837,1753441839695,-460.0,0.00019726,2]
[374782838,1753441839705,-460.0,0.00019726,2]
[374782839,1753441839716,-600.75,0.00019726,2]
[374782840,1753441839730,-544.36,0.00019726,2]
[374782841,1753441839740,-485.59267446,0.00019726,2]
[374782842,1753441839751,-460.0,0.00019726,2]
[374782843,1753441839761,-506.36,0.00019726,2]
[374782844,1753441839770,-537.82634601,0.00019726,2]
[374782845,1753441839780,-460.0,0.00019726,2]
[374782846,1753441839790,-460.0,0.00019726,2]
[374782847,1753441839800,-460.0,0.00019726,2]
[374782848,1753441839811,-460.0,0.00019726,2]
[374782849,1753441839821,-460.0,0.00019726,2]
[374782850,1753441839830,-1712.73,0.00019726,2]
[374782852,1753441839840,-891.54,0.00019726,2]
[374782854,1753441839849,-460.0,0.00019726,2]
[374782856,1753441839859,-460.0,0.00019726,2]
[374782858,1753441839868,-199.23,0.00019726,2]
[374782859,1753441839880,-182.08,0.00019726,2]
[374782860,1753441839890,-512.38,0.00019726,2]
[374782862,1753441839901,-460.0,0.00019726,2]
[374782864,1753441839911,-514.12,0.00019726,2]
[374782866,1753441839920,-460.0,0.00019726,2]
[374782867,1753441839930,-460.0,0.00019726,2]
[374782868,1753441839939,-460.0,0.00019726,2]
[374782869,1753441839948,-460.0,0.00019726,2]
[374782870,1753441839958,-460.0,0.00019726,2]
[374782871,1753441839968,-460.0,0.00019726,2]
[374782872,1753441839977,-460.0,0.00019726,2]
[374782873,1753441839986,-538.43,0.00019726,2]
[374782874,1753441839995,-524.1,0.00019726,2]
[374782875,1753441840004,-688.47,0.00019726,2]
[374782876,1753441840014,-460.0,0.00019726,2]
[374782877,1753441840023,-460.0,0.00019726,2]
[374782878,1753441840033,-460.0,0.00019726,2]
[374782879,1753441840043,-460.0,0.00019726,2]
[374782880,1753441840052,-347.8,0.00019726,2]
[374782881,1753441840062,-460.0,0.00019726,2]
[374782882,1753441840071,-3625.13,0.00019726,2]
[374782883,1753441840081,-460.0,0.00019726,2]
[374782884,1753441840091,-1002.04,0.00019726,2]
[374782885,1753441840100,-460.0,0.00019726,2]
[374782886,1753441840110,-460.0,0.00019726,2]
[374782887,1753441840120,-460.0,0.00019726,2]
[374782888,1753441840131,-460.0,0.00019726,2]
[374782889,1753441840141,-644.01,0.00019726,2]
[374782890,1753441840151,-1039.79436513,0.00019866,2]
[374782891,1753441840161,-500.37542207,0.00019873,2]
[374782892,1753441840170,-501.64062068,0.00019873,2]
[374782893,1753441840180,-500.0,0.00019873,2]
[374782894,1753441840190,-501.11919719,0.00019873,2]
[374782895,1753441840199,-500.43649988,0.00019873,2]
[374782896,1753441840209,-172345.04994763,0.0001989,2]
[374782897,1753441840218,-2663.9590342,0.00019937,2]
[374782898,1753441840228,-160.0,0.00019956,2]
[374782899,1753441840238,-463.27515092,0.00019989,2]
[374782900,1753441840247,-460.0,0.00019989,2]
[374782901,1753441840257,-460.0,0.00019989,2]
[374782902,1753441840267,-460.0,0.00019999,2]
[374782903,1753441840276,-460.0,0.0002,2]
[374782904,1753441840286,-460.0,0.0002,2]
[374782905,1753441840296,-460.0,0.0002,2]
[374782906,1753441840306,-685.69,0.0002,2]
[374782907,1753441840315,-460.0,0.0002,2]
[374782908,1753441840326,-460.0,0.0002,2]
[374782909,1753441840336,-460.0,0.0002,2]
[374782910,1753441840345,-506.36,0.0002,2]
[374782911,1753441840355,-460.0,0.0002,2]
[374782912,1753441840365,-197.9,0.0002,2]
[374782913,1753441840376,-460.0,0.0002,2]
[374782914,1753441840386,-460.0,0.0002,2]
[374782915,1753441840396,-460.0,0.0002,2]
[374782916,1753441840405,-1712.73,0.0002,2]
[374782917,1753441840415,-891.54,0.0002,2]
[374782918,1753441840424,-460.0,0.0002,2]
[374782919,1753441840434,-460.0,0.0002,2]
[374782920,1753441840443,-460.0,0.0002,2]
[374782921,1753441840453,-514.12,0.0002,2]
[374782922,1753441840462,-460.0,0.0002,2]
[374782923,1753441840472,-460.0,0.0002,2]
[374782924,1753441840481,-177.64,0.0002,2]
[374782925,1753441840492,-460.0,0.0002,2]
[374782926,1753441840501,-460.0,0.0002,2]
[374782927,1753441840511,-460.0,0.0002,2]
[374782928,1753441840521,-460.0,0.0002,2]
[374782929,1753441840531,-524.1,0.0002,2]
[374782930,1753441840540,-688.47,0.0002,2]
[374782931,1753441840575,-463.37390298,0.0002,2]
[374782932,1753441840585,-258.29579809,0.0002,2]
[374782933,1753441840595,-460.0,0.0002,2]
[374782934,1753441840605,-460.0,0.0002,2]
[374782935,1753441840614,-3625.13,0.0002,2]
[374782936,1753441840623,-1002.04,0.0002,2]
[374782937,1753441840633,-460.0,0.0002,2]
[374782938,1753441840643,-460.0,0.0002,2]
[374782939,1753441840653,-534.23,0.0002,2]
[374782940,1753441840663,-644.01,0.0002,2]
[374782941,1753441840672,-650.26,0.00020068,2]
[374782942,1753441840682,-1039.79436513,0.00020107,2]
[374782943,1753441840692,-308.019879,0.00020187,2]
[374782944,1753441840702,-275.19744533,0.00020192,2]
[374782945,1753441840712,-460.0,0.00020263,2]
[374782946,1753441840726,-460.0,0.00020273,2]
[374782947,1753441840735,-460.0,0.00020273,2]
[374782948,1753441840745,-685.69,0.00020273,2]
[374782949,1753441840756,-217.04,0.00020273,2]
[374782950,1753441840767,-460.0,0.00020273,2]
[374782951,1753441840787,-506.36,0.00020273,2]
[374782952,1753441840798,-460.0,0.00020273,2]
[374782953,1753441840808,-496.04,0.00020273,2]
[374782954,1753441840817,-460.0,0.00020273,2]
[374782955,1753441840826,-460.0,0.00020273,2]
[374782956,1753441840835,-1712.73,0.00020273,2]
[374782957,1753441840845,-891.54,0.00020273,2]
[374782958,1753441840854,-460.0,0.00020273,2]
[374782959,1753441840864,-460.0,0.00020273,2]
[374782960,1753441840874,-431.54,0.00020273,2]
[374782961,1753441840884,-514.12,0.00020273,2]
[374782962,1753441840895,-460.0,0.00020273,2]
[374782963,1753441840904,-460.0,0.00020273,2]
[374782964,1753441840915,-460.0,0.00020273,2]
[374782965,1753441840925,-460.0,0.00020273,2]
[374782966,1753441840935,-524.1,0.00020273,2]
[374782967,1753441840945,-688.47,0.00020273,2]
[374782968,1753441840955,-460.0,0.00020273,2]
[374782969,1753441840965,-460.0,0.00020273,2]
[374782970,1753441840974,-3625.13,0.00020273,2]
[374782971,1753441840984,-1002.04,0.00020273,2]
[374782972,1753441840993,-460.0,0.00020273,2]
[374782973,1753441841003,-460.0,0.00020273,2]
[374782974,1753441841012,-644.01,0.00020273,2]
[374782975,1753441841022,-1039.79436513,0.00020348,3]
[374782976,1753441841033,-360.0,0.00020504,2]
[374782977,1753441841043,-904.38,0.00020538,3]
[374782978,1753441841052,-452.18,0.00020538,3]
[374782979,1753441841062,-973.46,0.00020538,3]
[374782980,1753441841071,-486.72,0.00020538,3]
[374782981,1753441841081,-460.0,0.00020547,2]
[374782982,1753441841091,-685.69,0.00020547,2]
[374782983,1753441841101,-460.0,0.00020547,2]
[374782984,1753441841110,-506.36,0.00020547,2]
[374782985,1753441841120,-460.0,0.00020547,2]
[374782986,1753441841132,-891.54,0.00020547,2]
[374782987,1753441841142,-1712.73,0.00020547,2]
[374782988,1753441841151,-460.0,0.00020547,2]
[374782989,1753441841161,-460.0,0.00020547,2]
[374782990,1753441841171,-514.12,0.00020547,2]
[374782991,1753441841180,-460.0,0.00020547,2]
[374782992,1753441841190,-460.0,0.00020547,2]
[374782993,1753441841200,-460.0,0.00020547,2]
[374782994,1753441841209,-524.1,0.00020547,2]
[374782995,1753441841218,-688.47,0.00020547,2]
[374782996,1753441841227,-477.56,0.00020547,2]
[374782997,1753441841237,-460.0,0.00020547,2]
[374782998,1753441841247,-3625.13,0.00020547,2]
[374782999,1753441841257,-1002.04,0.00020547,2]
[374783000,1753441841267,-460.0,0.00020547,2]
[374783001,1753441841278,-460.0,0.00020547,2]
[374783002,1753441841290,-644.01,0.00020547,2]
[374783003,1753441841301,-1039.79436513,0.0002059,3]
[374783004,1753441841311,-685.69,0.00020821,2]
[374783005,1753441841320,-460.0,0.00020821,2]
[374783006,1753441841329,-506.36,0.00020821,2]
[374783007,1753441841339,-539.26,0.00020821,2]
[374783008,1753441841349,-891.54,0.00020821,2]
[374783009,1753441841358,-1712.73,0.00020821,2]
[374783010,1753441841368,-460.0,0.00020821,2]
[374783011,1753441841381,-460.0,0.00020821,2]
[374783012,1753441841391,-514.12,0.00020821,2]
[374783013,1753441841401,-460.0,0.00020821,2]
[374783014,1753441841411,-364.15,0.00020821,2]
[374783015,1753441841421,-460.0,0.00020821,2]
[374783016,1753441841431,-524.1,0.00020821,2]
[374783017,1753441841440,-688.47,0.00020821,2]
[374783018,1753441841450,-460.0,0.00020821,2]
[374783019,1753441841460,-3625.13,0.00020821,2]
[374783020,1753441841470,-1002.04,0.00020821,2]
[374783021,1753441841480,-460.0,0.00020821,2]
[374783022,1753441841490,-460.0,0.00020821,2]
[374783023,1753441841499,-644.01,0.00020821,2]
[374783024,1753441841509,-1039.79436513,0.00020831,4]
[374783025,1753441841519,-215.0738,0.00020949,2]
[374783026,1753441841529,-975.39,0.0002098,2]
[374783027,1753441841540,-3000.0,0.00021,2]
[374783028,1753441841550,-3000.0,0.0002101,2]
[374783029,1753441841560,-3000.0,0.0002102,2]
[374783030,1753441841571,-3000.0,0.0002103,2]
[374783031,1753441841580,-3000.0,0.0002104,2]
[374783032,1753441841590,-3000.0,0.0002105,2]
[374783033,1753441841600,-3000.0,0.0002106,2]
[374783034,1753441841610,-3000.0,0.0002107,2]
[374783035,1753441841620,-1039.79436513,0.00021072,4]
[374783036,1753441841635,-3000.0,0.0002108,2]
[374783037,1753441841645,-3000.0,0.0002109,2]
[374783038,1753441841655,-685.69,0.00021095,2]
[374783039,1753441841665,-460.0,0.00021095,2]
[374783040,1753441841674,-506.36,0.00021095,2]
[374783041,1753441841684,-891.54,0.00021095,2]
[374783042,1753441841694,-1712.73,0.00021095,2]
[374783043,1753441841705,-460.0,0.00021095,2]
[374783044,1753441841716,-460.0,0.00021095,2]
[374783045,1753441841728,-514.12,0.00021095,2]
[374783046,1753441841739,-460.0,0.00021095,2]
[374783047,1753441841748,-460.0,0.00021095,2]
[374783048,1753441841759,-524.1,0.00021095,2]
[374783049,1753441841768,-688.47,0.00021095,2]
[374783050,1753441841779,-460.0,0.00021095,2]
[374783051,1753441841788,-3625.13,0.00021095,2]
[374783052,1753441841800,-1002.04,0.00021095,2]
[374783053,1753441841810,-460.0,0.00021095,2]
[374783054,1753441841820,-460.0,0.00021095,2]
[374783055,1753441841830,-644.01,0.00021095,2]
[374783056,1753441841841,-3000.0,0.000211,2]
[374783057,1753441841850,-3000.0,0.0002111,2]
[374783058,1753441841860,-3000.0,0.0002112,2]
[374783059,1753441841872,-429.8269109,0.00021123,2]
[374783060,1753441841886,-429.8269109,0.00021123,2]
[374783061,1753441841896,-429.8269109,0.00021123,2]
[374783062,1753441841906,-3000.0,0.0002113,2]
[374783063,1753441841916,-3000.0,0.0002114,2]
[374783064,1753441841925,-3000.0,0.0002115,2]
[374783065,1753441841935,-3000.0,0.0002116,2]
[374783066,1753441841944,-181.86492511,0.00021168,2]
[374783067,1753441841954,-3000.0,0.0002117,2]
[374783068,1753441841964,-3000.0,0.0002118,2]
[374783069,1753441841974,-3000.0,0.0002119,2]
[374783070,1753441841984,-3000.0,0.000212,2]
[374783071,1753441841993,-3000.0,0.0002121,2]
[374783072,1753441842003,-3000.0,0.0002122,2]
[374783073,1753441842013,-3000.0,0.0002123,2]
[374783074,1753441842023,-3000.0,0.0002124,2]
[374783075,1753441842033,-3000.0,0.0002125,2]
[374783076,1753441842042,-3000.0,0.0002126,2]
[374783077,1753441842052,-3000.0,0.0002127,2]
[374783078,1753441842062,-311.837,0.00021276,2]
[374783079,1753441842072,-3000.0,0.0002128,2]
[374783080,1753441842082,-3000.0,0.0002129,2]
[374783081,1753441842100,-5999.713646,0.000213,2]
[374783082,1753441842115,-1039.79436513,0.00021314,5]
[374783083,1753441842125,-685.69,0.00021369,2]
[374783084,1753441842138,-460.0,0.00021369,2]
[374783085,1753441842148,-506.36,0.00021369,2]
[374783086,1753441842158,-891.54,0.00021369,2]
[374783088,1753441842167,-1712.73,0.00021369,2]
[374783090,1753441842177,-460.0,0.00021369,2]
[374783092,1753441842187,-460.0,0.00021369,2]
[374783094,1753441842196,-514.12,0.00021369,2]
[374783096,1753441842209,-460.0,0.00021369,2]
[374783098,1753441842219,-460.0,0.00021369,2]
[374783100,1753441842228,-524.1,0.00021369,2]
[374783102,1753441842238,-688.47,0.00021369,2]
[374783104,1753441842247,-460.0,0.00021369,2]
[374783106,1753441842257,-3625.13,0.00021369,2]
[374783108,1753441842267,-1002.04,0.00021369,2]
[374783110,1753441842276,-460.0,0.00021369,2]
[374783112,1753441842286,-504.27845576,0.00021369,2]
[374783114,1753441842296,-644.01,0.00021369,2]
[374783116,1753441842306,-174.0,0.0002137,4]
[374783118,1753441842315,-587.0,0.00021441,2]
[374783120,1753441842325,-1039.79436513,0.00021555,5]
[374783122,1753441842335,-685.69,0.00021643,2]
[374783124,1753441842345,-460.0,0.00021643,2]
[374783126,1753441842355,-506.36,0.00021643,2]
[374783128,1753441842365,-891.54,0.00021643,2]
[374783130,1753441842374,-1712.73,0.00021643,2]
[374783132,1753441842386,-460.0,0.00021643,2]
[374783134,1753441842395,-460.0,0.00021643,2]
[374783137,1753441842406,-514.12,0.00021643,2]
[374783139,1753441842415,-460.0,0.00021643,2]
[374783141,1753441842425,-460.0,0.00021643,2]
[374783143,1753441842435,-524.1,0.00021643,2]
[374783145,1753441842445,-688.47,0.00021643,2]
[374783147,1753441842455,-460.0,0.00021643,2]
[374783149,1753441842464,-3625.13,0.00021643,2]
[374783151,1753441842474,-1002.04,0.00021643,2]
[374783153,1753441842484,-460.0,0.00021643,2]
[374783155,1753441842494,-644.01,0.00021643,2]
[374783157,1753441842504,-1039.79436513,0.00021797,6]
[374783159,1753441842514,-648.0,0.00021802,2]
[374783161,1753441842523,-2157.0,0.00021802,2]
[374783163,1753441842533,-969.0,0.00021802,2]
[374783165,1753441842542,-407.0,0.00021802,2]
[374783167,1753441842552,-421.487,0.00021802,2]
[374783169,1753441842562,-159.9857365,0.00021808,2]
[374783171,1753441842572,-358.530955,0.00021808,2]
[374783173,1753441842581,-153.0,0.00021808,2]
[374783175,1753441842591,-178.3051933,0.00021808,2]
[374783177,1753441842601,-159.9857365,0.00021808,2]
[374783179,1753441842615,-153.0,0.00021808,2]
[374783181,1753441842634,-577.7720337,0.00021808,2]
[374783183,1753441842643,-153.0,0.00021808,2]
[374783185,1753441842654,-247.1109256,0.00021808,2]
[374783187,1753441842663,-178.3051933,0.00021808,2]
[374783189,1753441842673,-153.0,0.00021808,2]
[374783191,1753441842683,-159.9857365,0.00021808,2]
[374783193,1753441842693,-577.7720337,0.00021808,2]
[374783196,1753441842704,-153.0,0.00021808,2]
[374783198,1753441842717,-153.0,0.00021808,2]
[374783200,1753441842728,-1300.51,0.00021892,2]
[374783202,1753441842738,-685.69,0.00021917,2]
[374783204,1753441842748,-460.0,0.00021917,2]
[374783206,1753441842758,-506.36,0.00021917,2]
[374783208,1753441842768,-891.54,0.00021917,2]
[374783211,1753441842778,-1712.73,0.00021917,2]
[374783213,1753441842788,-460.0,0.00021917,2]
[374783216,1753441842799,-460.0,0.00021917,2]
[374783219,1753441842809,-514.12,0.00021917,2]
[374783221,1753441842819,-460.0,0.00021917,2]
[374783223,1753441842829,-460.0,0.00021917,2]
[374783225,1753441842838,-524.1,0.00021917,2]
[374783227,1753441842848,-688.47,0.00021917,2]
[374783229,1753441842858,-460.0,0.00021917,2]
[374783231,1753441842867,-3625.13,0.00021917,2]
[374783233,1753441842878,-1002.04,0.00021917,2]
[374783235,1753441842888,-460.0,0.00021917,2]
[374783238,1753441842898,-644.01,0.00021917,2]
[374783240,1753441842908,-150.0,0.00021918,2]
[374783242,1753441842919,-2312.27,0.00022,7]
[374783244,1753441842930,-540.79,0.00022,2]
[374783246,1753441842940,-151.0,0.00022,2]
[374783248,1753441842949,-5125.64074228,0.00022026,2]
[374783250,1753441842959,-1039.79436513,0.00022038,6]
[374783252,1753441842969,-429.8269109,0.00022082,2]
[374783254,1753441842980,-429.8269109,0.00022082,2]
[374783256,1753441842989,-429.8269109,0.00022082,2]
[374783258,1753441842999,-429.8269109,0.00022082,2]
[374783261,1753441843008,-429.8269109,0.00022082,2]
[374783263,1753441843018,-428.4594248,0.00022082,2]
[374783265,1753441843028,-192.0,0.00022157,2]
[374783267,1753441843038,-685.69,0.00022191,2]
[374783269,1753441843048,-460.0,0.00022191,2]
[374783271,1753441843058,-506.36,0.00022191,2]
[374783273,1753441843068,-891.54,0.00022191,2]
[374783275,1753441843077,-1712.73,0.00022191,2]
[374783277,1753441843086,-460.0,0.00022191,2]
[374783279,1753441843096,-460.0,0.00022191,2]
[374783281,1753441843105,-514.12,0.00022191,2]
[374783283,1753441843115,-460.0,0.00022191,2]
[374783285,1753441843126,-460.0,0.00022191,2]
[374783287,1753441843136,-524.1,0.00022191,2]
[374783289,1753441843146,-688.47,0.00022191,2]
[374783291,1753441843155,-460.0,0.00022191,2]
[374783294,1753441843166,-3625.13,0.00022191,2]
[374783296,1753441843176,-1002.04,0.00022191,2]
[374783298,1753441843185,-460.0,0.00022191,2]
[374783300,1753441843195,-644.01,0.00022191,2]
[374783302,1753441843205,-192.0,0.00022196,2]
[374783304,1753441843215,-500.0,0.00022251,2]
[374783306,1753441843225,-1039.79436513,0.00022279,6]
[374783308,1753441843235,-223.0315306,0.00022318,2]
[374783310,1753441843245,-1004.284523,0.000224,2]
[374783312,1753441843255,-421.780334,0.00022425,8]
[374783314,1753441843265,-685.69,0.00022465,2]
[374783316,1753441843275,-460.0,0.00022465,2]
[374783318,1753441843284,-506.36,0.00022465,2]
[374783321,1753441843295,-891.54,0.00022465,2]
[374783323,1753441843304,-1712.73,0.00022465,2]
[374783325,1753441843314,-460.0,0.00022465,2]
[374783336,1753441843415,-460.0,0.00022465,2]
[374783338,1753441843426,-514.12,0.00022465,2]
[374783341,1753441843436,-460.0,0.00022465,2]
[374783342,1753441843446,-460.0,0.00022465,2]
[374783345,1753441843456,-524.1,0.00022465,2]
[374783347,1753441843466,-688.47,0.00022465,2]
[374783349,1753441843475,-1341.38,0.00022465,2]
[374783351,1753441843485,-460.0,0.00022465,2]
[374783353,1753441843495,-3625.13,0.00022465,2]
[374783355,1753441843504,-1002.04,0.00022465,2]
[374783357,1753441843515,-460.0,0.00022465,2]
[374783359,1753441843524,-644.01,0.00022465,2]
[374783361,1753441843534,-300.0,0.00022466,2]
[374783363,1753441843544,-336.17,0.000225,2]
[374783365,1753441843553,-540.79,0.000225,2]
[374783367,1753441843564,-1039.79436513,0.00022521,7]
[374783369,1753441843573,-205.877652,0.00022603,2]
[374783371,1753441843582,-800.0,0.00022621,2]
[374783373,1753441843592,-159.9857365,0.0002263,2]
[374783375,1753441843602,-577.7720337,0.0002263,2]
[374783377,1753441843611,-153.0,0.0002263,2]
[374783380,1753441843622,-178.3051933,0.0002263,2]
[374783382,1753441843641,-153.0,0.0002263,2]
[374783384,1753441843656,-153.0,0.0002263,2]
[374783386,1753441843666,-159.9857365,0.0002263,2]
[374783388,1753441843675,-178.3051933,0.0002263,2]
[374783390,1753441843684,-159.9857365,0.0002263,2]
[374783392,1753441843693,-153.0,0.0002263,2]
[374783394,1753441843703,-178.3051933,0.0002263,2]
[374783396,1753441843715,-1147.3896604,0.0002263,2]
[374783398,1753441843728,-153.0,0.0002263,2]
[374783400,1753441843737,-158.0957717,0.0002263,2]
[374783402,1753441843747,-577.7720337,0.0002263,2]
[374783404,1753441843756,-178.3051933,0.0002263,2]
[374783406,1753441843766,-178.3051933,0.0002263,2]
[374783408,1753441843776,-159.4643669,0.0002263,2]
[374783410,1753441843785,-153.0,0.0002263,2]
[374783412,1753441843795,-153.0,0.0002263,2]
[374783414,1753441843804,-577.7720337,0.0002263,2]
[374783416,1753441843815,-577.7720337,0.0002263,2]
[374783418,1753441843824,-178.3051933,0.0002263,2]
[374783420,1753441843834,-159.9857365,0.0002263,2]
[374783422,1753441843843,-178.3051933,0.0002263,2]
[374783424,1753441843853,-159.9857365,0.0002263,2]
[374783426,1753441843862,-153.0,0.0002263,2]
[374783428,1753441843872,-577.7720337,0.0002263,2]
[374783430,1753441843883,-178.3051933,0.0002263,2]
[374783432,1753441843893,-159.9857365,0.0002263,2]
[374783434,1753441843903,-577.7720337,0.0002263,2]
[374783437,1753441843913,-159.9857365,0.0002263,2]
[374783439,1753441843923,-178.3051933,0.0002263,2]
[374783441,1753441843932,-577.7720337,0.0002263,2]
[374783443,1753441843942,-159.9857365,0.0002263,2]
[374783445,1753441843952,-178.3051933,0.0002263,2]
[374783447,1753441843962,-577.7720337,0.0002263,2]
[374783449,1753441843971,-178.3051933,0.0002263,2]
[374783451,1753441843981,-162.3093099,0.0002263,2]
[374783453,1753441843990,-577.7720337,0.0002263,2]
[374783455,1753441843999,-177.8731897,0.0002263,2]
[374783457,1753441844008,-577.7720337,0.0002263,2]
[374783459,1753441844018,-1098.09966511,0.00022635,2]
[374783461,1753441844027,-6542.50841559,0.00022635,2]
[374783463,1753441844036,-346.88189089,0.00022635,2]
[374783465,1753441844045,-500.0,0.00022664,2]
[374783467,1753441844055,-500.0,0.00022664,2]
[374783469,1753441844064,-151.0,0.00022664,2]
[374783471,1753441844073,-151.51462175,0.00022664,2]
[374783473,1753441844083,-198.0,0.00022664,2]
[374783475,1753441844092,-192.0,0.00022691,2]
[374783477,1753441844101,-800.0,0.00022694,2]
[374783479,1753441844110,-192.0,0.00022727,2]
[374783481,1753441844120,-685.69,0.00022739,2]
[374783483,1753441844130,-460.0,0.00022739,2]
[374783485,1753441844140,-506.36,0.00022739,2]
[374783487,1753441844149,-891.54,0.00022739,2]
[374783489,1753441844158,-1712.73,0.00022739,2]
[374783491,1753441844168,-460.0,0.00022739,2]
[374783493,1753441844177,-460.0,0.00022739,2]
[374783495,1753441844186,-514.12,0.00022739,2]
[374783497,1753441844196,-460.0,0.00022739,2]
[374783499,1753441844205,-460.0,0.00022739,2]
[374783501,1753441844214,-524.1,0.00022739,2]
[374783503,1753441844224,-688.47,0.00022739,2]
[374783505,1753441844233,-460.0,0.00022739,2]
[374783507,1753441844242,-3625.13,0.00022739,2]
[374783509,1753441844252,-1002.04,0.00022739,2]
[374783511,1753441844261,-460.0,0.00022739,2]